bitfinex-derivatives/quotes_BTCF0:USTF0_20250318
["timestamp","ask_amount","ask_price","bid_price","bid_amount"]
[1742326820386,0.1846359,82025.0,82024.0,0.0613]
[1742326821785,0.1219374,82024.0,82023.0,0.36991387]
[1742326821982,0.1219374,82024.0,82023.0,0.00911387]
[1742326822184,0.1219389,82023.0,82022.0,0.0323]
[1742326822680,0.1219404,82022.0,82021.0,0.88592]
[1742326822882,0.1219404,82022.0,82021.0,0.88524]
[1742326823089,0.1873404,82022.0,82021.0,0.88524]
[1742326823284,0.1873404,82022.0,82021.0,1.27924]
[1742326823690,0.1873404,82022.0,82021.0,0.91844]
[1742326824292,0.1545404,82022.0,82021.0,1.04947056]
[1742326824700,0.1845404,82022.0,82021.0,1.04947056]
[1742326826298,0.1845404,82022.0,82021.0,1.08047056]
[1742326827308,0.1219404,82022.0,82021.0,1.08047056]
[1742326828213,0.1876404,82022.0,82021.0,1.08047056]
[1742326828897,0.19025793,82196.0,82028.0,0.0609643]
[1742326828898,0.1219339,82029.0,82028.0,0.0609643]
[1742326829098,0.0609656,82029.0,82028.0,0.0609643]
[1742326829307,0.0609656,82029.0,82028.0,0.1826843]
[1742326829502,0.0609656,82029.0,82028.0,0.2774843]
[1742326830006,0.0609595,82037.0,82036.0,0.1219196]
[1742326830213,0.1828765,82039.0,82038.0,0.0609581]
[1742326830800,0.0328,82046.0,82038.0,0.13804876]
[1742326831103,0.0609497,82051.0,82046.0,0.0609523]
[1742326831310,0.12208461,82050.0,82049.0,0.1218988]
[1742326831495,0.00018281,82050.0,82049.0,0.1828489]
[1742326831701,0.1828319,82061.0,82060.0,0.0609413]
[1742326831902,0.0609404,82063.0,82062.0,0.121881]
[1742326833314,0.0609375,82066.0,82064.0,0.121878]
[1742326833619,0.0609375,82066.0,82064.0,0.482678]
[1742326834613,0.0609375,82066.0,82064.0,0.49170993]
[1742326834819,0.0609375,82066.0,82064.0,0.482678]
[1742326835006,0.0619384,82065.0,82064.0,0.482678]
[1742326836714,0.001,82065.0,82064.0,0.61956971]
[1742326837114,0.1228765,82065.0,82064.0,0.61956971]
[1742326837415,0.0609354,82069.0,82066.0,0.1828089]
[1742326837717,0.1218739,82067.0,82066.0,0.1828089]
[1742326838521,0.0332,82070.0,82064.0,0.50676571]
[1742326838522,0.1218695,82070.0,82069.0,0.1218706]
[1742326838726,0.00018281,82071.0,82070.0,0.1218691]
[1742326839021,0.12205041,82071.0,82070.0,0.1218691]
[1742326839515,0.00018281,82071.0,82070.0,0.1218691]
[1742326840003,0.12205041,82071.0,82070.0,0.1218691]
[1742326840720,0.12205041,82071.0,82070.0,0.2431891]
[1742326841522,0.12205041,82071.0,82070.0,0.2451891]
[1742326843020,0.18725041,82071.0,82070.0,0.2451891]
[1742326843320,0.18725041,82071.0,82070.0,0.12332]
[1742326844422,0.1198721,82068.0,82067.0,1.3685935]
[1742326844607,0.1198721,82068.0,82067.0,1.4889935]
[1742326844808,0.1850721,82068.0,82067.0,1.4889935]
[1742326845009,0.1830721,82068.0,82067.0,1.4889935]
[1742326845823,0.1830721,82068.0,82067.0,1.4909935]
[1742326846218,0.1830721,82068.0,82067.0,1.36912]
[1742326846415,0.1830721,82068.0,82067.0,0.88728]
[1742326846625,0.1830721,82068.0,82067.0,0.002]
[1742326847309,0.1218765,82065.0,82064.0,0.369874]
[1742326847809,0.2182765,82065.0,82064.0,0.369874]
[1742326848322,0.2182765,82065.0,82064.0,0.491752]
[1742326848323,0.0964,82065.0,82064.0,0.491752]
[1742326848531,0.0655,82065.0,82064.0,0.491752]
[1742326848712,0.0655,82065.0,82064.0,0.554252]
[1742326848913,0.0655,82065.0,82064.0,0.915052]
[1742326849224,0.0645,82065.0,82064.0,0.915052]
[1742326849721,0.1863765,82065.0,82064.0,0.730674]
[1742326850225,0.1873765,82065.0,82064.0,0.730674]
[1742326850530,0.1873765,82065.0,82064.0,0.795374]
[1742326850910,0.00018281,82071.0,82069.0,0.0609352]
[1742326851113,0.00018281,82071.0,82070.0,0.21804]
[1742326852220,0.06211711,82071.0,82070.0,0.3399091]
[1742326852925,0.06211711,82071.0,82070.0,0.2429091]
[1742326853124,0.06211711,82071.0,82070.0,0.2745091]
[1742326853323,0.06411711,82071.0,82070.0,0.3052091]
[1742326853626,0.06311711,82071.0,82070.0,0.3052091]
[1742326853832,0.06411711,82071.0,82070.0,0.3052091]
[1742326854324,0.12841711,82071.0,82070.0,0.3052091]
[1742326854513,0.12841711,82071.0,82070.0,0.18334]
[1742326854709,0.12841711,82071.0,82070.0,0.12104]
[1742326855514,0.12841711,82071.0,82070.0,0.2429091]
[1742326856325,0.12841711,82071.0,82070.0,0.3056091]
[1742326857019,0.06748281,82071.0,82070.0,0.3056091]
[1742326857923,0.18935041,82071.0,82070.0,0.3056091]
[1742326858225,0.06748281,82071.0,82070.0,0.3056091]
[1742326859626,0.18935041,82071.0,82070.0,0.3056091]
[1742326860126,0.06748281,82071.0,82070.0,0.3056091]
[1742326860311,0.1218623,82075.0,82074.0,0.1218631]
[1742326860510,0.0304,82075.0,82074.0,0.5139631]
[1742326860724,0.1522617,82075.0,82074.0,0.5139631]
[1742326861227,0.0609239,82085.0,82078.0,0.0609283]
[1742326861416,0.0306,82080.0,82079.0,0.4291111]
[1742326861616,0.182775,82085.0,82083.0,0.0609233]
[1742326861817,0.182775,82085.0,82084.0,0.3928]
[1742326862819,0.182775,82085.0,82084.0,0.5146483]
[1742326863727,0.185775,82085.0,82084.0,0.3928]
[1742326864433,0.217675,82085.0,82084.0,0.3928]
[1742326864616,0.219675,82085.0,82084.0,0.3608]
[1742326864816,0.251775,82085.0,82084.0,0.3608]
[1742326865014,0.27898447,82085.0,82084.0,0.3608]
[1742326865218,0.28398447,82085.0,82084.0,0.3608]
[1742326865730,0.1218513,82082.0,82081.0,0.0308]
[1742326865924,0.14906077,82082.0,82081.0,0.0308]
[1742326866125,0.21306077,82082.0,82081.0,0.0308]
[1742326866525,0.21306077,82082.0,82070.0,0.0609345]
[1742326866526,0.1218602,82076.0,82074.0,1.36708]
[1742326866730,0.1218602,82076.0,82075.0,0.0314]
[1742326867030,0.2191602,82076.0,82075.0,0.0314]
[1742326867417,0.1218617,82075.0,82074.0,0.88568]
[1742326867617,0.1218617,82075.0,82074.0,0.88504]
[1742326867831,0.1521617,82075.0,82074.0,0.88504]
[1742326868739,0.1847617,82075.0,82074.0,1.0383031]
[1742326869031,0.1847617,82075.0,82074.0,1.3991031]
[1742326869336,0.1218603,82076.0,82075.0,0.1218602]
[1742326869520,0.1218603,82076.0,82075.0,0.1850602]
[1742326870031,0.0609234,82085.0,82082.0,0.1827731]
[1742326870326,0.1827755,82083.0,82082.0,0.3608]
[1742326870535,0.1827755,82083.0,82082.0,0.4814]
[1742326871035,0.2474755,82083.0,82082.0,0.6032513]
[1742326871630,0.2484755,82083.0,82082.0,0.6032513]
[1742326872333,0.2494755,82083.0,82082.0,0.6032513]
[1742326873029,0.1847755,82083.0,82082.0,0.6032513]
[1742326873819,0.002,82083.0,82082.0,0.6032513]
[1742326874733,0.1238498,82083.0,82082.0,0.6032513]
[1742326876330,0.002,82083.0,82082.0,0.6032513]
[1742326876547,0.0317,82096.0,82089.0,0.1218409]
[1742326876834,0.0317,82091.0,82089.0,0.6363409]
[1742326877038,0.03228281,82090.0,82089.0,0.6363409]
[1742326877632,0.03228281,82090.0,82089.0,0.6670409]
[1742326877633,0.12802221,82090.0,82089.0,0.6670409]
[1742326877823,0.16012221,82090.0,82089.0,0.6670409]
[1742326878025,0.19182221,82090.0,82089.0,0.5452]
[1742326878225,0.19182221,82090.0,82089.0,0.5121]
[1742326879028,0.19182221,82090.0,82089.0,0.52731735]
[1742326879548,0.12802221,82090.0,82089.0,0.52731735]
[1742326879839,0.12802221,82090.0,82089.0,0.64915825]
[1742326880136,0.12802221,82090.0,82089.0,0.52731735]
[1742326880337,0.19132221,82090.0,82089.0,0.52731735]
[1742326880735,0.19132221,82090.0,82089.0,0.49661735]
[1742326881052,0.19132221,82090.0,82089.0,0.13581735]
[1742326881337,0.19132221,82090.0,82089.0,0.16651735]
[1742326886231,0.19132221,82090.0,82089.0,0.28835825]
[1742326886439,0.12802221,82090.0,82089.0,0.64915825]
[1742326886940,0.12802221,82090.0,82089.0,0.68155825]
[1742326887343,0.12202221,82090.0,82089.0,0.68355825]
[1742326887541,0.12202221,82090.0,82089.0,0.37901735]
[1742326887739,0.1218631,82074.0,82070.0,0.12464595]
[1742326887935,0.1218631,82074.0,82071.0,0.0324]
[1742326888129,0.1208631,82074.0,82071.0,0.0324]
[1742326888332,0.1837631,82074.0,82071.0,0.0324]
[1742326888554,0.1837631,82074.0,82072.0,0.5790805]
[1742326888739,0.1208631,82074.0,82073.0,0.13672256]
[1742326888943,0.02852947,82094.0,82087.0,0.1218409]
[1742326889134,0.0941,82109.0,82095.0,0.1218283]
[1742326889447,0.1218246,82100.0,82099.0,0.48544595]
[1742326889746,0.1218246,82100.0,82099.0,0.3937]
[1742326891135,0.1218246,82100.0,82099.0,0.515526]
[1742326891642,0.1218246,82100.0,82099.0,0.0329]
[1742326891643,0.1544246,82100.0,82099.0,0.0329]
[1742326891942,0.1873246,82100.0,82099.0,0.15346]
[1742326893146,0.121829,82097.0,82096.0,0.88556]
[1742326893334,0.121829,82097.0,82096.0,0.88492]
[1742326893534,0.152729,82097.0,82096.0,0.88492]
[1742326894334,0.153729,82097.0,82096.0,0.88492]
[1742326894536,0.186429,82097.0,82096.0,0.88492]
[1742326895247,0.186429,82097.0,82096.0,1.3675505]
[1742326895440,0.124829,82097.0,82096.0,1.3675505]
[1742326895835,0.124829,82097.0,82096.0,1.3981505]
[1742326897043,0.187029,82097.0,82096.0,1.3981505]
[1742326898749,0.124829,82097.0,82096.0,1.3981505]
[1742326900140,0.124829,82097.0,82096.0,1.27632]
[1742326900642,0.155829,82097.0,82096.0,1.27632]
[1742326901036,0.124829,82097.0,82096.0,1.3981505]
[1742326903145,0.155829,82097.0,82096.0,1.3981505]
[1742326903338,0.188629,82097.0,82096.0,1.27632]
[1742326903562,0.188629,82097.0,82096.0,1.3981505]
[1742326904139,0.188629,82097.0,82096.0,1.4285505]
[1742326904553,0.124829,82097.0,82096.0,1.4285505]
[1742326906140,0.189929,82097.0,82096.0,1.4285505]
[1742326906546,0.124829,82097.0,82096.0,1.4285505]
[1742326907552,0.124829,82097.0,82096.0,1.4594505]
[1742326910341,0.155029,82097.0,82096.0,1.4594505]
[1742326910739,0.003,82097.0,82096.0,1.4594505]
[1742326911343,0.0609039,82112.0,82107.0,0.1218142]
[1742326911555,0.1520122,82109.0,82107.0,0.6031742]
[1742326911749,0.0302,82109.0,82107.0,0.6677742]
[1742326911943,0.0331,82111.0,82107.0,0.7009742]
[1742326912147,0.0302,82116.0,82115.0,0.1218023]
[1742326912346,0.0302,82120.0,82119.0,0.2435886]
[1742326912652,0.0939948,82124.0,82120.0,0.1217949]
[1742326912653,0.1217937,82121.0,82120.0,0.1217949]
[1742326912853,0.1217937,82121.0,82120.0,0.33220555]
[1742326913343,0.1850937,82121.0,82120.0,0.33220555]
[1742326915256,0.1586937,82121.0,82120.0,0.33220555]
[1742326915445,0.1636937,82121.0,82120.0,0.33220555]
[1742326915645,0.1946937,82121.0,82120.0,0.33220555]
[1742326916757,0.1946937,82121.0,82120.0,0.21041065]
[1742326916957,0.1946937,82121.0,82120.0,0.33220555]
[1742326917959,0.01,82121.0,82120.0,1.21688555]
[1742326918158,0.1317934,82121.0,82120.0,1.21688555]
[1742326918949,0.1317934,82121.0,82120.0,1.09509065]
[1742326919251,0.2267934,82121.0,82120.0,1.09509065]
[1742326919457,0.2217934,82121.0,82120.0,1.09509065]
[1742326919649,0.2267934,82121.0,82120.0,1.09509065]
[1742326920346,0.2267934,82121.0,82120.0,1.21688555]
[1742326920549,0.01,82121.0,82120.0,1.21688555]
[1742326921353,0.1217813,82130.0,82129.0,0.1217801]
[1742326921558,0.1217813,82130.0,82129.0,0.6031001]
[1742326921760,0.1839813,82130.0,82129.0,0.6031001]
[1742326922151,0.1217813,82130.0,82129.0,0.6636001]
[1742326922558,0.1835813,82130.0,82129.0,0.6636001]
[1742326922760,0.1885813,82130.0,82129.0,0.6636001]
[1742326923348,0.1925813,82130.0,82129.0,0.6636001]
[1742326924153,0.0394,82130.0,82129.0,0.6636001]
[1742326924747,0.0725,82130.0,82129.0,0.6636001]
[1742326925744,0.0394,82130.0,82129.0,0.6636001]
[1742326925957,0.1611801,82130.0,82129.0,0.6636001]
[1742326926658,0.1611801,82130.0,82129.0,0.51162]
[1742326926857,0.1942801,82130.0,82129.0,0.51162]
[1742326927851,0.1942801,82130.0,82129.0,0.48132]
[1742326929858,0.1942801,82130.0,82129.0,0.3608]
[1742326930261,0.121786,82126.0,82125.0,0.032]
[1742326930656,0.214586,82126.0,82125.0,0.032]
[1742326931052,0.214586,82126.0,82120.0,0.91011065]
[1742326931053,0.1217934,82121.0,82120.0,0.91011065]
[1742326931365,0.1217934,82121.0,82120.0,0.89399619]
[1742326931580,0.1830934,82121.0,82120.0,0.89399619]
[1742326932653,0.1850934,82121.0,82120.0,0.89399619]
[1742326932865,0.1860934,82121.0,82120.0,0.89399619]
[1742326934662,0.1860934,82121.0,82120.0,0.92559619]
[1742326934868,0.1860934,82121.0,82120.0,0.89399619]
[1742326935263,0.1860934,82121.0,82120.0,0.00931619]
[1742326935571,0.1218023,82115.0,82114.0,0.0649]
[1742326935769,0.1218023,82115.0,82114.0,0.00905015]
[1742326935964,0.1218023,82115.0,82110.0,0.01560831]
[1742326935965,0.1218053,82113.0,82110.0,0.01560831]
[1742326936170,0.1218053,82113.0,82111.0,0.0649]
[1742326936372,0.1822053,82113.0,82112.0,0.06508269]
[1742326936673,0.1822053,82113.0,82112.0,0.18688949]
[1742326936875,0.1822053,82113.0,82112.0,0.06508269]
[1742326937263,0.1822053,82113.0,82112.0,0.18688949]
[1742326937571,0.1822053,82113.0,82112.0,0.06508269]
[1742326938474,0.1822053,82113.0,82112.0,0.06608269]
[1742326938866,0.1822053,82113.0,82112.0,0.07512803]
[1742326939171,0.1822053,82113.0,82112.0,0.07612803]
[1742326939375,0.1822053,82113.0,82112.0,0.07512803]
[1742326939769,0.1832053,82113.0,82112.0,0.00922803]
[1742326940166,0.3036853,82113.0,82112.0,0.00922803]
[1742326940475,0.3046853,82113.0,82112.0,0.00922803]
[1742326941377,0.3056853,82113.0,82112.0,0.00922803]
[1742326942262,0.3076853,82113.0,82112.0,0.00922803]
[1742326942677,0.3046853,82113.0,82112.0,9e-08]
[1742326942861,0.1218231,82101.0,82100.0,0.0307]
[1742326943474,0.1865231,82101.0,82100.0,0.0307]
[1742326944277,0.1865231,82101.0,82100.0,0.0400185]
[1742326946081,0.1875231,82101.0,82100.0,0.0400185]
[1742326947980,0.1875231,82101.0,82100.0,0.0093185]
[1742326948172,0.121826,82099.0,82098.0,0.0326]
[1742326948371,0.121826,82099.0,82098.0,0.04160218]
[1742326948572,0.182426,82099.0,82098.0,0.04160218]
[1742326949981,0.1218275,82098.0,82097.0,0.031]
[1742326950181,0.0609153,82096.0,82093.0,0.00896182]
[1742326950383,0.1218438,82087.0,82086.0,0.0318]
[1742326950773,0.1218438,82087.0,82086.0,0.5233605]
[1742326952190,0.1218435,82088.0,82087.0,0.1827642]
[1742326952490,0.1208435,82088.0,82087.0,0.1827642]
[1742326952689,0.1208435,82088.0,82087.0,0.2132642]
[1742326953680,0.1208435,82088.0,82087.0,0.2162642]
[1742326954583,0.1208435,82088.0,82087.0,0.2192642]
[1742326955593,0.1208435,82088.0,82087.0,0.2499642]
[1742326955791,0.0609204,82089.0,82088.0,0.1218424]
[1742326955986,0.0609204,82089.0,82088.0,0.1842424]
[1742326956882,0.0609191,82091.0,82088.0,0.1842424]
[1742326957080,0.0609121,82101.0,82098.0,0.1827375]
[1742326957387,0.1218244,82101.0,82100.0,0.1218246]
[1742326957594,0.1218246,82100.0,82099.0,0.0938]
[1742326957889,0.1828246,82100.0,82099.0,0.0938]
[1742326958774,0.1828246,82100.0,82099.0,0.10879448]
[1742326959185,0.1828246,82100.0,82099.0,0.0624]
[1742326959486,0.5446246,82100.0,82099.0,0.0624]
[1742326961475,0.060915,82097.0,82060.0,0.35198227]
[1742326961682,0.1218424,82088.0,82087.0,0.0301]
[1742326962292,0.1867424,82088.0,82087.0,0.0301]
[1742326963289,0.1867424,82088.0,82087.0,0.0331]
[1742326964788,0.1867424,82088.0,82087.0,0.0655]
[1742326964992,0.1867424,82088.0,82087.0,0.0685]
[1742326970198,0.1867424,82088.0,82087.0,0.006]
[1742326970587,0.1218438,82087.0,82086.0,0.00907113]
[1742326970787,0.1218557,82079.0,82070.0,0.12052]
[1742326970992,0.4826557,82079.0,82071.0,0.0962]
[1742326971194,0.5458557,82079.0,82071.0,0.0962]
[1742326971699,0.5458557,82079.0,82073.0,0.01556724]
[1742326971700,0.55702457,82079.0,82073.0,0.01556724]
[1742326971885,0.55702457,82079.0,82071.0,0.0962]
[1742326972595,0.55402457,82079.0,82078.0,0.00618269]
[1742326973588,0.55402457,82079.0,82078.0,0.01018269]
[1742326974303,0.55402457,82079.0,82078.0,9e-08]
[1742326975701,0.1218661,82072.0,82071.0,0.0642]
[1742326975900,0.4826661,82072.0,82071.0,0.0642]
[1742326976402,0.5444661,82072.0,82071.0,0.0642]
[1742326976601,0.1836661,82072.0,82071.0,0.1860676]
[1742326976796,0.003,82072.0,82071.0,0.2799008]
[1742326977206,0.1248661,82072.0,82071.0,0.2799008]
[1742326977903,0.003,82072.0,82071.0,0.2799008]
[1742326978200,0.005,82072.0,82071.0,0.2799008]
[1742326978405,0.005,82072.0,82071.0,0.4004208]
[1742326978704,0.002,82072.0,82071.0,0.4004208]
[1742326978909,0.004,82072.0,82071.0,0.4004208]
[1742326979298,0.002,82072.0,82071.0,0.4004208]
[1742326979598,0.004,82072.0,82071.0,0.4004208]
[1742326979809,0.0609245,82084.0,82083.0,0.1218498]
[1742326980105,0.1827774,82084.0,82083.0,0.1218498]
[1742326980300,0.1218417,82089.0,82088.0,0.1218424]
[1742326980605,0.1218417,82089.0,82088.0,0.3041624]
[1742326980900,0.1218417,82089.0,82088.0,0.31870753]
[1742326981607,0.121836,82093.0,82092.0,0.0609174]
[1742326981901,0.0609124,82100.0,82096.0,0.1218305]
[1742326982104,0.0609124,82100.0,82099.0,0.121826]
[1742326982410,0.0609072,82107.0,82099.0,0.3608]
[1742326982699,0.1827224,82107.0,82106.0,0.4826157]
[1742326982902,0.1827224,82107.0,82106.0,0.6031357]
[1742326983100,0.1827224,82107.0,82106.0,0.49620213]
[1742326983298,0.1827224,82107.0,82106.0,0.13540213]
[1742326983610,0.1827224,82107.0,82106.0,0.19730213]
[1742326984106,0.1857224,82107.0,82106.0,0.19730213]
[1742326984296,0.1867224,82107.0,82106.0,0.19730213]
[1742326985106,0.1857224,82107.0,82106.0,0.19730213]
[1742326985406,0.1887224,82107.0,82106.0,0.19730213]
[1742326988407,0.1887224,82107.0,82106.0,0.31911783]
[1742326988705,0.1887224,82107.0,82106.0,0.19730213]
[1742326990010,0.2189224,82107.0,82106.0,0.19730213]
[1742326990511,0.1887224,82107.0,82106.0,0.31911783]
[1742326991412,0.1887224,82107.0,82106.0,0.19730213]
[1742326991814,0.1887224,82107.0,82106.0,0.31911783]
[1742326992316,0.1887224,82107.0,82106.0,0.67991783]
[1742326992511,0.006,82107.0,82106.0,0.67991783]
[1742326993115,0.12198649,82115.0,82113.0,0.1827064]
[1742326993310,0.00018269,82115.0,82114.0,0.2422838]
[1742326993518,0.0608963,82122.0,82121.0,0.0608959]
[1742326993715,0.1826882,82122.0,82121.0,0.1813759]
[1742326994117,0.2152848,82124.0,82123.0,0.1217904]
[1742326994417,0.1826848,82124.0,82123.0,0.14534891]
[1742326994717,0.1826848,82124.0,82123.0,0.02355851]
[1742326994910,0.1217919,82122.0,82121.0,0.2422734]
[1742326995113,0.1267919,82122.0,82121.0,0.2422734]
[1742326995318,0.1893919,82122.0,82121.0,0.2422734]
[1742326995717,0.1893919,82122.0,82121.0,0.25657068]
[1742326996512,0.1843919,82122.0,82121.0,0.25657068]
[1742326996721,0.1833919,82122.0,82121.0,0.25657068]
[1742326997509,0.1833919,82122.0,82121.0,0.25757068]
[1742326998816,0.1833919,82122.0,82121.0,0.14499911]
[1742326999027,0.2138919,82122.0,82121.0,0.14499911]
[1742326999328,0.2138919,82122.0,82121.0,0.01026183]
[1742327000620,0.2138919,82122.0,82121.0,0.00926183]
[1742327000819,0.1217949,82120.0,82119.0,0.135102]
[1742327001211,0.1218008,82116.0,82115.0,0.88490269]
[1742327001622,0.1871008,82116.0,82115.0,0.88490269]
[1742327002114,0.1871008,82116.0,82115.0,0.00018269]
[1742327002305,0.5479008,82116.0,82115.0,0.00018269]
[1742327002715,0.56224652,82116.0,82115.0,0.00018269]
[1742327003215,0.5479008,82116.0,82115.0,0.00018269]
[1742327003721,0.182725,82106.0,82105.0,0.1218168]
[1742327003925,0.1218171,82105.0,82104.0,0.12044]
[1742327004115,0.2194171,82105.0,82104.0,0.2422586]
[1742327005025,0.1878171,82105.0,82104.0,0.2422586]
[1742327005226,0.00018269,82113.0,82107.0,0.0609063]
[1742327005426,0.1218082,82111.0,82110.0,0.1827122]
[1742327005627,0.1218082,82111.0,82110.0,0.3031522]
[1742327006626,0.1218082,82111.0,82110.0,0.12044]
[1742327006829,0.2137082,82111.0,82110.0,0.12044]
[1742327007721,0.1218127,82108.0,82107.0,0.001]
[1742327008128,0.1830127,82108.0,82107.0,0.001]
[1742327008332,0.1198157,82106.0,82105.0,0.031]
[1742327008929,0.1810157,82106.0,82105.0,0.031]
[1742327009524,0.1820157,82106.0,82105.0,0.031]
[1742327010324,0.1518157,82106.0,82105.0,0.1528171]
[1742327010625,0.001,82106.0,82105.0,0.1853171]
[1742327011018,0.1218143,82107.0,82106.0,0.1218157]
[1742327011422,0.1218143,82107.0,82106.0,0.1844157]
[1742327011626,0.1218128,82108.0,82107.0,0.1827197]
[1742327012016,0.1218128,82108.0,82107.0,0.2453197]
[1742327012222,0.182716,82111.0,82110.0,0.1218097]
[1742327012526,0.182716,82111.0,82110.0,0.6030497]
[1742327012721,0.245316,82111.0,82110.0,0.6977497]
[1742327013825,0.245316,82111.0,82110.0,0.18304]
[1742327014037,0.1218157,82106.0,82105.0,0.002]
[1742327014214,0.1208171,82105.0,82103.0,0.0304]
[1742327014418,0.1218186,82104.0,82103.0,0.0304]
[1742327014832,0.1862186,82104.0,82103.0,0.0606]
[1742327015516,0.1862186,82104.0,82103.0,0.07497923]
[1742327015929,0.1218201,82103.0,82102.0,0.3608]
[1742327016419,0.1859201,82103.0,82102.0,0.3608]
[1742327016730,0.1859201,82103.0,82102.0,0.38427918]
[1742327017524,0.1859201,82103.0,82102.0,0.02347918]
[1742327017723,0.121829,82097.0,82096.0,0.00018269]
[1742327018226,0.215729,82097.0,82096.0,0.00018269]
[1742327018832,0.215729,82097.0,82096.0,0.15311319]
[1742327019137,0.215729,82097.0,82096.0,0.18611319]
[1742327019436,0.184729,82097.0,82096.0,0.19535852]
[1742327020735,0.184729,82097.0,82096.0,0.19635852]
[1742327022019,0.184729,82097.0,82096.0,0.07452802]
[1742327023656,0.184729,82097.0,82096.0,0.04252802]
[1742327024233,0.184729,82097.0,82096.0,0.07552802]
[1742327024636,0.184729,82097.0,82096.0,0.10742802]
[1742327026940,0.184729,82097.0,82096.0,0.07552802]
[1742327027441,0.184729,82097.0,82096.0,0.01142802]
[1742327027823,0.184729,82097.0,82096.0,0.04282802]
[1742327028230,0.184729,82097.0,82096.0,0.00218269]
[1742327029437,0.19905898,82097.0,82096.0,0.00218269]
[1742327029827,0.184729,82097.0,82096.0,0.00218269]
[1742327031742,0.184729,82097.0,82096.0,0.13330922]
[1742327031945,0.184729,82097.0,82096.0,0.12401319]
[1742327031946,0.121829,82097.0,82096.0,0.12401319]
[1742327032542,0.121829,82097.0,82096.0,0.15501319]
[1742327032940,0.121829,82097.0,82096.0,0.18831319]
[1742327034041,0.121829,82097.0,82096.0,0.19743461]
[1742327036745,0.121829,82097.0,82096.0,0.07560411]
[1742327036942,0.184429,82097.0,82096.0,0.07560411]
[1742327039545,0.184429,82097.0,82096.0,0.19743461]
[1742327039751,0.121829,82097.0,82096.0,0.19743461]
[1742327040651,0.121829,82097.0,82096.0,0.07560411]
[1742327040852,0.186329,82097.0,82096.0,0.07560411]
[1742327043655,0.121829,82097.0,82096.0,0.19743461]
[1742327044160,0.183129,82097.0,82096.0,0.19743461]
[1742327044747,0.183129,82097.0,82096.0,0.07560411]
[1742327045459,0.183129,82097.0,82096.0,0.19743461]
[1742327047265,0.183129,82097.0,82096.0,0.07560411]
[1742327048370,0.183129,82097.0,82096.0,0.19743461]
[1742327048568,0.183129,82097.0,82096.0,0.07560411]
[1742327048760,0.183129,82097.0,82096.0,0.00218269]
[1742327048960,0.214729,82097.0,82096.0,0.00218269]
[1742327053163,0.22860975,82097.0,82096.0,0.00218269]
[1742327053471,0.1218528,82081.0,82080.0,0.0646]
[1742327053664,0.1218528,82081.0,82080.0,0.0326]
[1742327053862,0.1218542,82080.0,82079.0,0.88548]
[1742327054070,0.1218661,82072.0,82071.0,0.2175671]
[1742327054270,0.1218661,82072.0,82071.0,0.0957]
[1742327054474,0.1825661,82072.0,82071.0,0.0646]
[1742327054880,0.1825661,82072.0,82071.0,0.07883772]
[1742327055880,0.1805661,82072.0,82071.0,0.07883772]
[1742327056376,0.1825661,82072.0,82071.0,0.07883772]
[1742327056874,0.1815661,82072.0,82071.0,0.07883772]
[1742327057072,0.1835661,82072.0,82071.0,0.07883772]
[1742327057269,0.2147661,82072.0,82071.0,0.07883772]
[1742327057974,0.2147661,82072.0,82071.0,0.07370134]
[1742327058176,0.2147661,82072.0,82071.0,0.00910134]
[1742327058375,0.1218706,82069.0,82068.0,0.0314]
[1742327058877,0.1848706,82069.0,82068.0,0.0314]
[1742327059282,0.1848706,82069.0,82065.0,0.01429652]
[1742327059283,0.121875,82066.0,82065.0,0.01429652]
[1742327059471,0.121875,82066.0,82064.0,0.04134497]
[1742327059472,0.1218765,82065.0,82064.0,0.04134497]
[1742327059673,0.1548765,82065.0,82064.0,0.04134497]
[1742327060380,0.121878,82064.0,82063.0,0.00018269]
[1742327060766,0.186678,82064.0,82063.0,0.00018269]
[1742327061166,0.0648,82064.0,82063.0,0.00018269]
[1742327061379,0.0648,82064.0,82063.0,0.12206219]
[1742327061571,0.186678,82064.0,82063.0,0.00018269]
[1742327064665,0.186678,82064.0,82063.0,0.06398269]
[1742327066666,0.186678,82064.0,82063.0,0.03198269]
[1742327066868,0.186678,82064.0,82063.0,0.00018269]
[1742327067874,0.186678,82064.0,82063.0,0.03068269]
[1742327069779,0.186678,82064.0,82063.0,0.06168269]
[1742327070179,0.186678,82064.0,82063.0,0.03068269]
[1742327070681,0.186678,82064.0,82063.0,0.06168269]
[1742327070883,0.186678,82064.0,82063.0,0.54436219]
[1742327071774,0.186678,82064.0,82063.0,0.42248269]
[1742327076180,0.186678,82064.0,82063.0,0.45458269]
[1742327080400,0.153678,82064.0,82063.0,0.45458269]
[1742327080582,0.121878,82064.0,82063.0,0.57646219]
[1742327080788,0.1218765,82065.0,82064.0,0.0609389]
[1742327080991,0.1218765,82065.0,82064.0,0.1813389]
[1742327081196,0.1218765,82065.0,82064.0,0.2461389]
[1742327083496,0.1218765,82065.0,82064.0,0.1852]
[1742327083698,0.1550765,82065.0,82064.0,0.1852]
[1742327083894,0.1858765,82065.0,82064.0,0.1852]
[1742327089696,0.1858765,82065.0,82064.0,0.0648]
[1742327090209,0.1858765,82065.0,82064.0,0.0316]
[1742327090392,0.121878,82064.0,82063.0,0.00018269]
[1742327090588,0.154178,82064.0,82063.0,0.00018269]
[1742327090801,0.216778,82064.0,82063.0,0.03308269]
[1742327091009,0.216778,82064.0,82063.0,0.06418269]
[1742327093104,0.216778,82064.0,82063.0,0.00018269]
[1742327095195,0.121878,82064.0,82063.0,0.48286219]
[1742327095401,0.0609376,82066.0,82065.0,0.1218765]
[1742327095909,0.1827987,82074.0,82073.0,0.0609315]
[1742327096118,0.1827987,82074.0,82073.0,0.4217315]
[1742327096299,0.1827913,82076.0,82075.0,0.1218617]
[1742327096807,0.1218578,82078.0,82077.0,0.1827865]
[1742327097601,0.1218578,82078.0,82077.0,0.19720237]
[1742327097802,0.00018269,82080.0,82079.0,0.1218557]
[1742327098002,0.00018269,82080.0,82079.0,0.3383557]
[1742327098517,0.12203689,82080.0,82079.0,0.3383557]
[1742327099298,0.12603689,82080.0,82079.0,0.3383557]
[1742327100412,0.13003689,82080.0,82079.0,0.3383557]
[1742327100807,0.00818269,82080.0,82079.0,0.3383557]
[1742327101014,1e-08,82080.0,82079.0,0.6991557]
[1742327103917,0.12202509,82088.0,82087.0,0.6681038]
[1742327104101,0.12202509,82088.0,82087.0,0.6711038]
[1742327104609,0.12202509,82088.0,82087.0,0.6681038]
[1742327104812,0.12202509,82088.0,82087.0,0.6701038]
[1742327105011,0.12202509,82088.0,82087.0,0.3947]
[1742327105210,0.18512509,82088.0,82087.0,0.51706]
[1742327105523,0.18512509,82088.0,82087.0,0.004]